fUSD/lending_fUSD_20240119
["ID","MTS","AMOUNT","RATE_DAILY","PERIOD"]
[312136695,1705666308631,-510.2661341,0.00023819,2]
[312136696,1705666308642,-500.0,0.00023819,2]
[312136697,1705666308652,-500.0,0.00023819,2]
[312136698,1705666308665,-552.11163449,0.00023819,2]
[312136699,1705666308677,-518.00105393,0.00023819,2]
[312136700,1705666308689,-511.08156151,0.00023819,2]
[312136701,1705666308700,-500.0,0.00023819,2]
[312136702,1705666308711,-520.06,0.00023819,2]
[312136703,1705666308722,-522.38,0.00023819,2]
[312136704,1705666308733,-951.95,0.00023819,2]
[312136705,1705666308744,-509.86032079,0.00023819,2]
[312136706,1705666308756,-500.0,0.00023819,2]
[312136707,1705666308768,-500.0,0.00023819,2]
[312136708,1705666308779,-500.0,0.00023819,2]
[312136709,1705666308791,-500.0,0.00023819,2]
[312136710,1705666308802,-500.0,0.00023819,2]
[312136711,1705666308813,-500.0,0.00023819,2]
[312136712,1705666308824,-500.0,0.00023819,2]
[312136713,1705666308835,-500.0,0.00023819,2]
[312136714,1705666308847,-500.0,0.00023819,2]
[312136715,1705666308859,-1016.97,0.00023819,2]
[312136716,1705666308872,-500.0,0.00023819,2]
[312136717,1705666308884,-500.0,0.00023819,2]
[312136718,1705666308896,-500.0,0.00023819,2]
[312136719,1705666308907,-500.0,0.00023819,2]
[312136720,1705666308921,-500.0,0.00023819,2]
[312136721,1705666308933,-500.0,0.00023819,2]
[312136722,1705666308943,-500.0,0.00023819,2]
[312136723,1705666308954,-500.0,0.00023819,2]
[312136724,1705666308966,-500.0,0.00023819,2]
[312136725,1705666308977,-500.0,0.00023819,2]
[312136726,1705666308987,-500.0,0.00023819,2]
[312136727,1705666309000,-500.0,0.00023819,2]
[312136728,1705666309010,-506.38939152,0.00023819,2]
[312136729,1705666309022,-500.0,0.00023819,2]
[312136730,1705666309033,-742.91,0.00023819,2]
[312136731,1705666309044,-500.0,0.00023819,2]
[312136732,1705666309055,-500.0,0.00023819,2]
[312136733,1705666309067,-500.0,0.00023819,2]
[312136734,1705666309078,-625.1,0.00023819,2]
[312136735,1705666309089,-500.0,0.00023819,2]
[312136736,1705666309101,-500.0,0.00023819,2]
[312136737,1705666309112,-500.0,0.00023819,2]
[312136738,1705666309124,-500.0,0.00023819,2]
[312136739,1705666309135,-538.32,0.00023819,2]
[312136740,1705666309146,-500.0,0.00023819,2]
[312136741,1705666309158,-500.0,0.00023819,2]
[312136742,1705666309170,-536.45,0.00023819,2]
[312136743,1705666309181,-661.07,0.00023819,2]
[312136744,1705666309193,-500.0,0.00023819,2]
[312136745,1705666309205,-500.0,0.00023819,2]
[312136746,1705666309217,-500.0,0.00023819,2]
[312136747,1705666309230,-500.0,0.00023819,2]
[312136748,1705666309243,-501.35,0.00023819,2]
[312136749,1705666309254,-331.92824331,0.00023819,2]
[312136750,1705666309265,-500.0,0.00023819,2]
[312136751,1705666309277,-500.0,0.00023819,2]
[312136752,1705666309288,-500.0,0.00023819,2]
[312136753,1705666309299,-500.0,0.00023819,2]
[312136754,1705666309310,-505.27,0.00023819,2]
[312136755,1705666309321,-500.0,0.00023819,2]
[312136756,1705666309334,-500.0,0.00023819,2]
[312136757,1705666309346,-1361.89,0.00023819,2]
[312136758,1705666309357,-342.90532894,0.00023819,2]
[312136759,1705666309369,-500.0,0.00023819,2]
[312136760,1705666309380,-500.0,0.00023819,2]
[312136761,1705666309391,-500.0,0.00023819,2]
[312136762,1705666309403,-930.39,0.00023819,2]
[312136763,1705666309416,-500.0,0.00023819,2]
[312136764,1705666309428,-500.0,0.00023819,2]
[312136765,1705666309439,-500.0,0.00023819,2]
[312136766,1705666309450,-500.0,0.00023819,2]
[312136767,1705666309462,-500.0,0.00023819,2]
[312136768,1705666309473,-500.0,0.00023819,2]
[312136769,1705666309484,-500.0,0.00023819,2]
[312136770,1705666309495,-987.25,0.00023819,2]
[312136771,1705666309506,-500.0,0.00023819,2]
[312136772,1705666309517,-500.0,0.00023819,2]
[312136773,1705666309528,-500.0,0.00023819,2]
[312136774,1705666309539,-595.38900734,0.00023819,2]
[312136775,1705666309551,-500.0,0.00023819,2]
[312136776,1705666309563,-267.20536572,0.00023819,2]
[312136777,1705666309574,-500.0,0.00023819,2]
[312136778,1705666309585,-500.0,0.00023819,2]
[312136779,1705666309597,-500.0,0.00023819,2]
[312136780,1705666309607,-500.0,0.00023819,2]
[312136781,1705666309618,-804.04,0.00023819,2]
[312136782,1705666309629,-500.0,0.00023819,2]
[312136783,1705666309640,-340.24298513,0.00023819,2]
[312136784,1705666309652,-834.1,0.00023819,2]
[312136785,1705666309664,-500.0,0.00023819,2]
[312136786,1705666309675,-530.68,0.00023819,2]
[312136787,1705666309686,-500.0,0.00023819,2]
[312136788,1705666309698,-2493.17,0.00023819,2]
[312136789,1705666309708,-500.0,0.00023819,2]
[312136790,1705666309719,-882.8,0.00023819,2]
[312136791,1705666309730,-573.74,0.00023819,2]
[312136792,1705666309742,-500.0,0.00023819,2]
[312136793,1705666309753,-500.0,0.00023819,2]
[312136794,1705666309764,-615.64,0.00023819,2]
[312136795,1705666309775,-674.04,0.00023819,2]
[312136796,1705666309786,-500.0,0.00023819,2]
[312136797,1705666309799,-500.0,0.00023819,2]
[312136798,1705666309811,-226.79261176,0.00023819,2]
[312136799,1705666309822,-500.0,0.00023819,2]
[312136800,1705666309834,-1047.1,0.00023819,2]
[312136801,1705666309845,-500.0,0.00023819,2]
[312136802,1705666309858,-500.0,0.00023819,2]
[312136803,1705666309874,-500.0,0.00023819,2]
[312136804,1705666309886,-500.0,0.00023819,2]
[312136805,1705666309898,-500.0,0.00023819,2]
[312136806,1705666309910,-830.43,0.00023819,2]
[312136807,1705666309923,-500.0,0.00023819,2]
[312136808,1705666309935,-500.0,0.00023819,2]
[312136809,1705666309947,-506.03845214,0.00023819,2]
[312136810,1705666309959,-505.934055,0.00023819,2]
[312136811,1705666309971,-530.34533861,0.00023819,2]
[312136812,1705666309981,-500.0,0.00023819,2]
[312136813,1705666309992,-500.0,0.00023819,2]
[312136814,1705666310003,-634.94,0.00023819,2]
[312136815,1705666310014,-500.0,0.00023819,2]
[312136816,1705666310026,-833.55,0.00023819,2]
[312136817,1705666310037,-816.25,0.00023819,2]
[312136818,1705666310048,-500.0,0.00023819,2]
[312136819,1705666310060,-500.0,0.00023819,2]
[312136820,1705666310072,-793.96,0.00023819,2]
[312136821,1705666310083,-500.0,0.00023819,2]
[312136822,1705666310094,-500.0,0.00023819,2]
[312136823,1705666310106,-635.15502479,0.00023819,2]
[312136824,1705666310117,-500.0,0.00023819,2]
[312136825,1705666310128,-500.0,0.00023819,2]
[312136826,1705666310140,-348.30721702,0.00023819,2]
[312136827,1705666310151,-680.83,0.00023819,2]
[312136828,1705666310163,-435.63150309,0.00023819,2]
[312136829,1705666310173,-500.0,0.00023819,2]
[312136830,1705666310184,-1052.77,0.00023819,2]
[312136831,1705666310195,-500.0,0.00023819,2]
[312136832,1705666310207,-293.7947752,0.00023819,2]
[312136833,1705666310217,-500.0,0.00023819,2]
[312136834,1705666310229,-959.44,0.00023819,2]
[312136835,1705666310239,-500.0,0.00023819,2]
[312136836,1705666310250,-500.0,0.00023819,2]
[312136837,1705666310261,-500.0,0.00023819,2]
[312136838,1705666310272,-1805.01,0.00023819,2]
[312136839,1705666310283,-500.0,0.00023819,2]
[312136840,1705666310293,-500.0,0.00023819,2]
[312136841,1705666310304,-500.0,0.00023819,2]
[312136842,1705666310316,-500.0,0.00023819,2]
[312136843,1705666310327,-2839.77,0.00023819,2]
[312136844,1705666310338,-790.25,0.00023819,2]
[312136845,1705666310349,-500.0,0.00023819,2]
[312136846,1705666310360,-500.0,0.00023819,2]
[312136847,1705666310371,-4249.75,0.00023819,2]
[312136848,1705666310382,-520.62,0.00023819,2]
[312136849,1705666310393,-3411.47,0.00023819,2]
[312136850,1705666310404,-500.0,0.00023819,2]
[312136851,1705666310416,-500.0,0.00023819,2]
[312136852,1705666310426,-2837.35,0.00023819,2]
[312136853,1705666310436,-500.0,0.00023819,2]
[312136854,1705666310447,-5228.14,0.00023819,2]
[312136855,1705666310458,-931.26,0.00023819,2]
[312136856,1705666310468,-500.0,0.00023819,2]
[312136857,1705666310478,-500.0,0.00023819,2]
[312136858,1705666310488,-500.0,0.00023819,2]
[312136859,1705666310499,-1306.88,0.00023819,5]
[312136860,1705666310509,-500.0,0.00023819,2]
[312136861,1705666310519,-1111.12,0.00023819,2]
[312136862,1705666310529,-4809.82,0.00023819,2]
[312136863,1705666310540,-629.42,0.00023819,2]
[312136864,1705666310550,-500.0,0.00023819,2]
[312136865,1705666310560,-5302.03,0.00023819,2]
[312136866,1705666310571,-500.0,0.00023819,2]
[312136867,1705666310582,-500.0,0.00023819,2]
[312136868,1705666310593,-500.0,0.00023819,2]
[312136869,1705666310604,-500.0,0.00023819,2]
[312136870,1705666310614,-548.62,0.00023819,2]
[312136871,1705666310626,-500.0,0.00023819,2]
[312136872,1705666310637,-500.0,0.00023819,2]
[312136873,1705666310649,-500.0,0.00023819,2]
[312136874,1705666310660,-500.0,0.00023819,2]
[312136875,1705666310671,-886.28,0.00023819,2]
[312136876,1705666310683,-877.94,0.00023819,2]
[312136877,1705666310694,-500.0,0.00023819,2]
[312136878,1705666310706,-724.04,0.00023819,2]
[312136879,1705666310717,-3371.7,0.00023819,2]
[312136880,1705666310728,-596.58,0.00023819,2]
[312136881,1705666310739,-629.61885102,0.00023819,2]
[312136882,1705666310750,-500.0,0.00023819,2]
[312136883,1705666310761,-493.55068306,0.00023819,2]
[312136884,1705666310772,-4400.66,0.00023819,2]
[312136885,1705666310783,-500.0,0.00023819,2]
[312136886,1705666310794,-988.81,0.00023819,2]
[312136887,1705666310805,-500.0,0.00023819,2]
[312136888,1705666310816,-827.84,0.00023819,2]
[312136889,1705666310827,-669.84,0.00023819,2]
[312136890,1705666310839,-500.0,0.00023819,2]
[312136891,1705666310850,-500.0,0.00023819,2]
[312136892,1705666310861,-300.0,0.00023819,2]
[312136893,1705666310876,-558.63,0.00023819,2]
[312136894,1705666310886,-2045.96,0.00023819,2]
[312136895,1705666310898,-500.0,0.00023819,2]
[312136896,1705666310910,-3996.45,0.00023819,2]
[312136897,1705666310921,-500.0,0.00023819,2]
[312136898,1705666310933,-500.0,0.00023819,2]
[312136899,1705666310944,-612.06,0.00023819,2]
[312136900,1705666310956,-500.0,0.00023819,2]
[312136901,1705666310968,-500.0,0.00023819,2]
[312136902,1705666310979,-2049.86,0.00023819,2]
[312136903,1705666310990,-868.63,0.00023819,2]
[312136904,1705666311001,-207.18552786,0.00023819,2]
[312136905,1705666311013,-591.26,0.00023819,2]
[312136906,1705666311023,-500.0,0.00023819,2]
[312136907,1705666311034,-1069.62,0.00023819,2]
[312136908,1705666311047,-500.0,0.00023819,2]
[312136909,1705666311058,-500.0,0.00023819,2]
[312136910,1705666311070,-2549.06,0.00023819,2]
[312136911,1705666311082,-500.0,0.00023819,2]
[312136912,1705666311093,-500.0,0.00023819,2]
[312136913,1705666311105,-500.0,0.00023819,2]
[312136914,1705666311117,-587.35,0.00023819,2]
[312136915,1705666311128,-1768.63,0.00023819,2]
[312136916,1705666311139,-500.0,0.00023819,2]
[312136917,1705666311150,-519.3810089,0.00023819,2]
[312136918,1705666311161,-500.0,0.00023819,2]
[312136919,1705666311173,-510.25687152,0.00023819,2]
[312136920,1705666311183,-500.0,0.00023819,2]
[312136921,1705666311194,-1408.95,0.00023819,2]
[312136922,1705666311205,-500.0,0.00023819,2]
[312136923,1705666311217,-3266.27,0.00023819,2]
[312136924,1705666311228,-500.0,0.00023819,2]
[312136925,1705666311239,-504.38320545,0.00023819,2]
[312136926,1705666311250,-500.0,0.00023819,2]
[312136927,1705666311262,-500.0,0.00023819,2]
[312136928,1705666311273,-1854.3,0.00023819,2]
[312136929,1705666311284,-500.0,0.00023819,2]
[312136930,1705666311294,-638.39,0.00023819,2]
[312136931,1705666311306,-500.0,0.00023819,2]
[312136932,1705666311317,-1678.82,0.00023819,2]
[312136933,1705666311328,-614.16,0.00023819,2]
[312136934,1705666311339,-854.41,0.00023819,2]
[312136935,1705666311350,-964.22,0.00023819,2]
[312136936,1705666311361,-1518.27,0.00023819,2]
[312136937,1705666311373,-500.0,0.00023819,2]
[312136938,1705666311384,-2179.92,0.00023819,2]
[312136939,1705666311396,-500.0,0.00023819,2]
[312136940,1705666311408,-500.0,0.0002382,2]
[312136941,1705666311420,-588.64,0.0002382,2]
[312136942,1705666311431,-220.48905639,0.0002382,2]
[312136943,1705666311442,-500.0,0.0002382,2]
[312136944,1705666311453,-609.91,0.0002382,2]
[312136945,1705666311464,-500.0,0.0002382,2]
[312136946,1705666311475,-500.0,0.0002382,2]
[312136947,1705666311486,-500.0,0.0002382,2]
[312136948,1705666311497,-500.0,0.0002382,2]
[312136949,1705666311508,-500.0,0.0002382,2]
[312136950,1705666311518,-982.40909965,0.0002382,2]
[312136951,1705666311530,-500.0,0.0002382,2]
[312136952,1705666311540,-461.18117792,0.0002382,2]
[312136953,1705666311551,-607.72,0.0002382,2]
[312136954,1705666311563,-500.0,0.0002382,2]
[312136955,1705666311574,-500.0,0.0002382,2]
[312136956,1705666311584,-500.0,0.0002382,2]
[312136957,1705666311595,-604.29,0.0002382,2]
[312136958,1705666311606,-767.29,0.0002382,2]
[312136959,1705666311617,-573.87,0.0002382,2]
[312136960,1705666311629,-500.0,0.0002382,2]
[312136961,1705666311640,-500.0,0.0002382,2]
[312136962,1705666311652,-500.0,0.0002382,2]
[312136963,1705666311663,-828.77,0.0002382,2]
[312136964,1705666311675,-500.0,0.0002382,2]
[312136965,1705666311686,-500.0,0.0002382,2]
[312136966,1705666311697,-500.0,0.0002382,2]
[312136967,1705666311708,-500.0,0.0002382,2]
[312136968,1705666311719,-500.0,0.0002382,2]
[312136969,1705666311731,-500.0,0.0002382,2]
[312136970,1705666311742,-500.0,0.0002382,2]
[312136971,1705666311754,-500.0,0.0002382,2]
[312136972,1705666311765,-500.0,0.0002382,2]
[312136973,1705666311776,-572.89,0.0002382,2]
[312136974,1705666311788,-500.0,0.0002382,2]
[312136975,1705666311799,-500.0,0.0002382,2]
[312136976,1705666311811,-662.42,0.0002382,2]
[312136977,1705666311822,-500.0,0.0002382,2]
[312136978,1705666311834,-500.0,0.0002382,2]
[312136979,1705666311845,-500.0,0.0002382,2]
[312136980,1705666311856,-500.0,0.0002382,2]
[312136981,1705666311869,-692.21,0.0002382,2]
[312136982,1705666311880,-500.0,0.0002382,2]
[312136983,1705666311891,-500.0,0.0002382,2]
[312136984,1705666311902,-505.94,0.0002382,2]
[312136985,1705666311914,-514.25126089,0.0002382,2]
[312136986,1705666311925,-700.62,0.0002382,2]
[312136987,1705666311937,-843.53,0.0002382,2]
[312136988,1705666311949,-500.0,0.0002382,2]
[312136989,1705666311962,-497.80050624,0.0002382,2]
[312136990,1705666311974,-533.10671253,0.0002382,2]
[312136991,1705666311986,-463.31789695,0.0002382,2]
[312136992,1705666311997,-527.20142698,0.0002382,2]
[312136993,1705666312009,-500.0,0.0002382,2]
[312136994,1705666312020,-561.36,0.0002382,2]
[312136995,1705666312032,-500.0,0.0002382,2]
[312136996,1705666312042,-620.37,0.0002382,2]
[312136997,1705666312054,-514.48521976,0.0002382,2]
[312136998,1705666312065,-500.0,0.0002382,2]
[312136999,1705666312077,-500.0,0.0002382,2]
[312137000,1705666312088,-690.35,0.0002382,2]
[312137001,1705666312100,-500.0,0.0002382,2]
[312137002,1705666312112,-500.0,0.0002382,2]
[312137003,1705666312124,-659.08,0.0002382,2]
[312137004,1705666312135,-500.0,0.0002382,2]
[312137005,1705666312147,-500.0,0.0002382,2]
[312137006,1705666312158,-924.43,0.0002382,2]
[312137007,1705666312170,-500.0,0.0002382,2]
[312137008,1705666312181,-500.0,0.0002382,2]
[312137009,1705666312193,-500.0,0.0002382,2]
[312137010,1705666312204,-500.0,0.0002382,2]
[312137011,1705666312216,-1191.14,0.0002382,2]
[312137012,1705666312227,-500.0,0.0002382,2]
[312137013,1705666312237,-730.5,0.0002382,2]
[312137014,1705666312249,-500.0,0.0002382,2]
[312137015,1705666312260,-557.03,0.0002382,2]
[312137016,1705666312271,-664.98,0.0002382,2]
[312137017,1705666312282,-1551.61,0.0002382,2]
[312137018,1705666312294,-500.0,0.0002382,2]
[312137019,1705666312305,-500.0,0.0002382,2]
[312137020,1705666312316,-500.0,0.0002382,2]
[312137021,1705666312327,-500.0,0.0002382,2]
[312137022,1705666312339,-1101.59,0.0002382,2]
[312137023,1705666312351,-500.0,0.0002382,2]
[312137024,1705666312362,-500.0,0.0002382,2]
[312137025,1705666312468,-500.0,0.0002382,2]
[312137026,1705666312489,-629.68,0.0002382,2]
[312137027,1705666312500,-500.0,0.0002382,2]
[312137028,1705666312512,-500.0,0.0002382,2]
[312137029,1705666312524,-738.94,0.0002382,2]
[312137030,1705666312535,-500.0,0.0002382,2]
[312137031,1705666312547,-500.0,0.0002382,2]
[312137032,1705666312559,-500.0,0.0002382,2]
[312137033,1705666312570,-500.0,0.0002382,2]
[312137034,1705666312582,-810.12,0.0002382,2]
[312137035,1705666312593,-537.48,0.0002382,2]
[312137036,1705666312605,-500.0,0.0002382,2]
[312137037,1705666312616,-500.0,0.0002382,2]
[312137038,1705666312627,-526.16,0.0002382,2]
[312137039,1705666312638,-500.0,0.0002382,2]
[312137040,1705666312650,-603.09,0.0002382,2]
[312137041,1705666312661,-1028.88,0.0002382,2]
[312137042,1705666312674,-500.0,0.0002382,2]
[312137043,1705666312686,-500.0,0.0002382,2]
[312137044,1705666312697,-500.0,0.0002382,2]
[312137045,1705666312708,-500.0,0.0002382,2]
[312137046,1705666312719,-953.72,0.0002382,2]
[312137047,1705666312731,-500.0,0.0002382,2]
[312137048,1705666312743,-711.06,0.0002382,2]
[312137049,1705666312754,-1427.07,0.0002382,2]
[312137050,1705666312765,-618.44,0.0002382,2]
[312137051,1705666312778,-1731.93,0.0002382,2]
[312137052,1705666312789,-747.42,0.0002382,2]
[312137053,1705666312800,-500.0,0.0002382,2]
[312137054,1705666312811,-500.0,0.0002382,2]
[312137055,1705666312822,-500.0,0.0002382,2]
[312137056,1705666312834,-500.0,0.0002382,2]
[312137057,1705666312845,-545.79864608,0.0002382,2]
[312137058,1705666312857,-500.0,0.0002382,2]
[312137059,1705666312870,-638.91,0.0002382,2]
[312137060,1705666312883,-541.71146474,0.0002382,2]
[312137061,1705666312894,-508.4435535,0.0002382,2]
[312137062,1705666312906,-500.0,0.0002382,2]
[312137063,1705666312918,-587.67,0.0002382,2]
[312137064,1705666312928,-500.0,0.0002382,2]
[312137065,1705666312939,-500.0,0.0002382,2]
[312137066,1705666312949,-500.0,0.0002382,2]
[312137067,1705666312961,-500.0,0.0002382,2]
[312137068,1705666312974,-500.0,0.0002382,2]
[312137069,1705666312986,-556.3,0.0002382,2]
[312137070,1705666312998,-500.0,0.0002382,2]
[312137071,1705666313011,-500.0,0.0002382,2]
[312137072,1705666313022,-1190.14,0.0002382,2]
[312137073,1705666313034,-500.0,0.0002382,2]
[312137074,1705666313047,-500.0,0.0002382,2]
[312137075,1705666313058,-500.0,0.0002382,2]
[312137076,1705666313070,-653.45,0.0002382,2]
[312137077,1705666313083,-565.86,0.0002382,2]
[312137078,1705666313094,-500.0,0.0002382,2]
[312137079,1705666313105,-500.0,0.0002382,2]
[312137080,1705666313117,-500.0,0.0002382,2]
[312137081,1705666313129,-500.0,0.0002382,2]
[312137082,1705666313140,-594.53,0.0002382,2]
[312137083,1705666313152,-513.0640857,0.0002382,2]
[312137084,1705666313164,-500.0,0.0002382,2]
[312137085,1705666313176,-730.94,0.0002382,2]
[312137086,1705666313187,-500.0,0.0002382,2]
[312137087,1705666313198,-500.0,0.0002382,2]
[312137088,1705666313210,-515.86326112,0.00023821,2]
[312137089,1705666313222,-504.61032442,0.00023821,2]
[312137090,1705666313233,-500.0,0.00023821,2]
[312137091,1705666313246,-500.0,0.00023821,2]
[312137092,1705666313257,-500.0,0.00023821,2]
[312137093,1705666313268,-500.0,0.00023821,2]
[312137094,1705666313280,-466.05747486,0.00023821,2]
[312137095,1705666313292,-490.31178831,0.00023821,2]
[312137096,1705666313305,-1439.31,0.00023821,2]
[312137097,1705666313316,-1221.48,0.00023821,2]
[312137098,1705666313328,-2355.38,0.00023821,2]
[312137099,1705666313339,-500.0,0.00023821,2]
[312137100,1705666313351,-1913.69,0.00023821,2]
[312137101,1705666313362,-500.0,0.00023821,2]
[312137102,1705666313373,-500.0,0.00023821,2]
[312137103,1705666313385,-500.0,0.00023821,2]
[312137104,1705666313397,-1389.84,0.00023821,2]
[312137105,1705666313408,-500.0,0.00023821,2]
[312137106,1705666313419,-500.0,0.00023821,2]
[312137107,1705666313431,-566.35,0.00023821,2]
[312137108,1705666313442,-500.0,0.00023821,2]
[312137109,1705666313453,-834.36,0.00023821,2]
[312137110,1705666313465,-899.48,0.00023821,2]
[312137111,1705666313476,-1018.63,0.00023821,2]
[312137112,1705666313488,-770.66,0.00023821,2]
[312137113,1705666313499,-602.31,0.00023821,2]
[312137114,1705666313511,-543.43,0.00023821,2]
[312137115,1705666313522,-1486.66,0.00023821,2]
[312137116,1705666313534,-1291.26,0.00023821,2]
[312137117,1705666313545,-946.18,0.00023821,2]
[312137118,1705666313558,-1374.09,0.00023821,2]
[312137119,1705666313569,-1903.0,0.00023821,2]
[312137120,1705666313582,-1394.03,0.00023821,2]
[312137121,1705666313593,-500.0,0.00023821,2]
[312137122,1705666313604,-1081.06,0.00023821,2]
[312137123,1705666313615,-613.64,0.00023821,2]
[312137124,1705666313627,-822.5,0.00023821,2]
[312137125,1705666313638,-988.14,0.00023821,2]
[312137126,1705666313649,-1134.32,0.00023821,2]
[312137127,1705666313661,-1114.34,0.00023821,2]
[312137128,1705666313673,-500.0,0.00023821,2]
[312137129,1705666313685,-500.0,0.00023821,2]
[312137130,1705666313699,-500.0,0.00023821,2]
[312137131,1705666313710,-1136.5,0.00023821,2]
[312137132,1705666313721,-657.2,0.00023821,2]
[312137133,1705666313733,-1517.72,0.00023821,2]
[312137134,1705666313745,-500.0,0.00023821,2]
[312137135,1705666313757,-1390.83,0.00023821,2]
[312137136,1705666313769,-500.0,0.00023821,2]
[312137137,1705666313781,-500.0,0.00023821,2]
[312137138,1705666313792,-624.44,0.00023821,2]
[312137139,1705666313804,-873.54,0.00023821,2]
[312137140,1705666313816,-500.0,0.00023821,2]
[312137141,1705666313827,-500.0,0.00023821,2]
[312137142,1705666313839,-1098.08,0.00023821,2]
[312137143,1705666313850,-1055.03,0.00023821,2]
[312137144,1705666313861,-1465.17,0.00023821,2]
[312137145,1705666313876,-1388.77,0.00023821,2]
[312137146,1705666313889,-751.33,0.00023821,2]
[312137147,1705666313901,-847.66,0.00023821,2]
[312137148,1705666313913,-1716.75,0.00023821,2]
[312137149,1705666313925,-1266.25,0.00023821,2]
[312137150,1705666313936,-1506.4,0.00023821,2]
[312137151,1705666313947,-1094.94,0.00023821,2]
[312137152,1705666313960,-1831.72,0.00023821,2]
[312137153,1705666313973,-1727.3,0.00023821,2]
[312137154,1705666313986,-1056.89,0.00023821,2]
[312137155,1705666313997,-500.0,0.00023821,2]
[312137156,1705666314009,-935.85,0.00023821,2]
[312137157,1705666314020,-1066.08,0.00023821,2]
[312137158,1705666314031,-1553.56,0.00023821,2]
[312137159,1705666314043,-2466.3,0.00023821,2]
[312137160,1705666314054,-1630.52,0.00023821,2]
[312137161,1705666314065,-1692.09,0.00023821,2]
[312137162,1705666314076,-1389.04,0.00023821,2]
[312137163,1705666314087,-1366.17,0.00023821,2]
[312137164,1705666314099,-150.45,0.00023837,2]
[312137165,1705666314110,-180.0,0.00023898,2]
[312137166,1705666314122,-159.31,0.00023928,2]
[312137167,1705666314132,-205.0,0.00023965,6]
[312137168,1705666314143,-432.05,0.00023988,2]
[312137169,1705666314155,-159.46,0.00023991,2]
[312137170,1705666314166,-500.0,0.00023997,2]
[312137171,1705666314178,-189.37054978,0.00023999,2]
[312137172,1705666314189,-500.38491589,0.00023999,2]
[312137173,1705666314200,-431.59040182,0.00024,2]
[312137174,1705666314211,-155.49650287,0.00024,2]
[312137175,1705666314223,-201.16205573,0.00024,2]
[312137176,1705666314235,-1500.0,0.00024,2]
[312137177,1705666314246,-600.0,0.00024,3]
[312137178,1705666314258,-4008.29333289,0.00024,2]
[312137179,1705666314542,-12068.94,0.00024075,2]
[312137180,1705666314602,-1901.08,0.00024075,2]
[312137181,1705666314615,-975.74,0.00024075,2]
[312137182,1705666314626,-2659.65,0.00024075,2]
[312137183,1705666314638,-500.0,0.00024075,2]
[312137184,1705666314650,-564.95,0.00024075,2]
[312137185,1705666314661,-500.0,0.00024075,2]
[312137186,1705666314674,-1625.11,0.00024075,2]
[312137187,1705666314686,-1446.64,0.00024075,2]
[312137188,1705666314698,-2115.14,0.00024075,2]
[312137189,1705666314710,-1533.66,0.00024075,2]
[312137190,1705666314721,-5142.49,0.00024075,2]
[312137191,1705666314733,-18985.1,0.00024075,2]
[312137192,1705666314744,-689.2,0.00024075,2]
[312137193,1705666314756,-2678.36,0.00024075,2]
[312137194,1705666314767,-1927.81,0.00024075,2]